Cogmind - Beta 13 @@@ ROGUE MODE // 2024.04.28 @ 21:13:39 Player: MiNathan Result: Destroyed by S-10 Pest with Light Assault Rifle Performance ------------- Evolutions (2) 1000 Regions Visited (4) 800 Robots Destroyed (60) 300 Value Destroyed (1300) 1300 Prototype IDs (9) 180 Alien Tech Used (0) 0 Bonus (52) 52 TOTAL SCORE: 3632 Bonus ------- Follower Combat Kills 52 Cogmind --------- Core Integrity 0/550 Matter 289/300 Energy 100/100 System Corruption 1% Temperature Cool (0) Movement Core (50) Location -8/Materials Parts ------- > --- POWER (1) -------- (None) > --- PROPULSION (3) --- (None) > --- UTILITY (5) ------ (None) > --- WEAPON (2) ------- Enhanced Autogun > --- INVENTORY (5) ---- Mining Laser Peak State ------------ > --- POWER ------------ Cooled Ion Engine > --- PROPULSION ------- Improved Flight Unit Improved Flight Unit > --- UTILITY ---------- Weight Redist. System Signal Interpreter Decoy Drone Bay > --- WEAPON ----------- Improved Medium Laser Heavy Assault Rifle > --- INVENTORY -------- Improved Flight Unit Sensor Array Hammer [Rating: 31] Favorites ----------- Power Cooled Ion Engine Engine Cooled Ion Engine Power Core Light Nuclear Core Propulsion Light Treads Treads Light Treads Flight Unit Improved Flight Unit Utility Sensor Array Device Sensor Array Processor Signal Interpreter Weapon Light Assault Rifle Energy Gun Improved Medium Laser Ballistic Gun Light Assault Rifle Launcher Rocket Launcher Special Weapon Plasma Flamer Impact Weapon Hammer Build | -11 -10 -9 -9 -8 ------- Run | Yrd Mat Mat Min Mat Slots Evolved 4 | . . 2 . 2 Power . | . . . . . Propulsion 1 | . . . . 1 Utility 3 | . . 2 . 1 Weapon . | . . . . . Parts Attached 59 | 5 11 17 9 17 Power 11 | 1 5 1 . 4 Engine 8 | 1 3 1 . 3 Core 3 | . 2 . . 1 Reactor . | . . . . . Propulsion 9 | 2 3 3 . 1 Treads 6 | 2 3 1 . . Leg . | . . . . . Wheel . | . . . . . Hover . | . . . . . Flight 3 | . . 2 . 1 Utility 16 | . 2 5 4 5 Device 13 | . 2 4 4 3 Storage . | . . . . . Processor 3 | . . 1 . 2 Hackware . | . . . . . Protection . | . . . . . Artifact . | . . . . . Weapon 23 | 2 1 8 5 7 Energy Gun 10 | . 1 3 1 5 Energy Cannon . | . . . . . Ballistic Gun 7 | 2 . 4 . 1 Ballistic Cannon . | . . . . . Launcher 1 | . . . 1 . Special Weapon 4 | . . . 3 1 Impact Weapon 1 | . . 1 . . Slashing Weapon . | . . . . . Piercing Weapon . | . . . . . Special Melee Weapon . | . . . . . Unidentified Prototypes 5 | . . 3 1 1 Parts Lost 15 | . . 1 . 14 Power 3 | . . . . 3 Propulsion 3 | . . . . 3 Utility 5 | . . . . 5 Weapon 4 | . . 1 . 3 Highest Loss Streak 7 | . . 1 . 7 To Critical Strikes . | . . . . . Average Slot Usage (%) 76 | . 76 85 99 51 Engine 8 | . 7 9 11 7 Core 2 | . 6 . . . Treads 12 | . 28 13 . . Flight 7 | . . 6 22 7 Device 17 | . 5 25 33 15 Processor 6 | . . 7 11 9 Energy Gun 8 | . 8 4 10 9 Ballistic Gun 12 | . 19 17 7 . Special Weapon 1 | . . . 3 1 Naked Turns 1 | . . . . 1 Heaviest Build 17 | 7 10 16 17 16 Greatest Support 40 | 40 40 40 16 21 Greatest Overweight (x) 3 | . . 3 1 3 Average Overweight (x) . | . . . . . Largest Inventory Capacity 5 | 5 5 5 5 5 Average Capacity 5 | 5 5 5 5 5 Most Carried 5 | 4 4 5 5 5 Average Carried 2 | . 1 2 4 1 Final Capacity 5 | 5 5 5 5 5 Final Carried 5 | . 3 2 5 1 Class Distribution -------------------- 37% | Mutant 31% | Scavenger-Scout 21% | Scavenger-Mutant 9% | Scavenger-Skirmisher Dominant Class ---------------- Mutant | -10/Materials Scavenger-Skirmisher | -9/Materials Scavenger-Scout | -9/Mines Scavenger-Mutant | -8/Materials Resources | -11 -10 -9 -9 -8 ----------- Run | Yrd Mat Mat Min Mat Matter Collected 1335 | 199 298 379 156 303 Remotely . | . . . . . Salvage Created 1972 | . 559 700 42 671 Parts 125 | . 37 46 1 41 Haulers Intercepted 8 | . 2 5 . 1 Recyclers Shooed 3 | . 3 . . . Parts Field Recycled . | . . . . . Retrieved Matter . | . . . . . Parts Self-Destructed . | . . . . . Prevented . | . . . . . Kills | -11 -10 -9 -9 -8 ------- Run | Yrd Mat Mat Min Mat Combat Hostiles Destroyed 33 | . 10 11 1 11 Guns 29 | . 10 11 1 7 Cannons 1 | . . . . 1 Classes Destroyed 11 | . 7 1 . 3 Worker 1 | . . . . 1 Builder 6 | . 1 2 . 3 Hauler 8 | . 2 5 . 1 Recycler 2 | . 1 1 . . Mechanic 1 | . 1 . . . Operator 1 | . . . . 1 Watcher 8 | . 2 2 . 4 Swarmer 10 | . 5 4 . 1 Grunt 18 | . 5 6 1 6 Sentry 4 | . . 1 . 3 Hunter 1 | . . . . 1 Best Kill Streak 4 | . 4 4 1 4 Combat Bots Only 4 | . 4 3 1 4 Max Kills in Single Turn 2 | . 1 2 1 1 Gunslinging . | . . . . . Exploded . | . . . . . Melee . | . . . . . Uniques/NPCs Destroyed . | . . . . . Combat | -11 -10 -9 -9 -8 -------- Run | Yrd Mat Mat Min Mat Hostile Shots Fired 289 | . 62 75 . 152 Missed 102 | . 20 33 . 49 Damage Taken 2349 | . 441 475 10 1423 Core 721 | . 79 91 . 551 Absorbed by Shields . | . . . . . Regen/Repaired (Parts) 79 | . . 79 . . Core Remaining (%) 81 | 100 68 . 77 . Volleys Fired 292 | . 85 78 4 125 Largest 2 | . 2 2 1 2 Hottest 156 | . 85 88 100 156 Shots Fired 472 | . 170 154 4 144 Gun 454 | . 170 154 2 128 Cannon . | . . . . . Launcher . | . . . . . Special 18 | . . . 2 16 Kinetic 280 | . 140 135 . 5 Thermal 192 | . 30 19 4 139 Explosive . | . . . . . Electromagnetic . | . . . . . Robot Hit Streak 9 | . 8 8 9 7 Robot Miss Streak 7 | . 5 7 . 6 Penetration Max . | . . . . . Secondary Targets 4 | . 2 2 . . Max Gunslinging Chain 1 | . 1 1 . . Shots Hit Robots 260 | . 95 80 2 83 Core Hits 100 | . 37 27 1 35 Critical Kills . | . . . . . Critical Parts Destroyed 1 | . 1 . . . Critical Strikes 10 | . 1 1 . 8 Burn 9 | . . 1 . 8 Destroy 1 | . 1 . . . Melee Attacks . | . . . . . Impact . | . . . . . Slashing . | . . . . . Piercing . | . . . . . Sneak Attacks . | . . . . . Combat Hostiles . | . . . . . Follow-up Attacks . | . . . . . Damage Inflicted 3686 | . 999 1291 33 1363 Guns 3490 | . 993 1291 33 1173 Cannons . | . . . . . Explosions . | . . . . . Melee . | . . . . . Ramming 63 | . 6 . . 57 Kinetic 1812 | . 640 1158 . 14 Thermal 1811 | . 353 133 33 1292 Explosive . | . . . . . Electromagnetic . | . . . . . Impact . | . . . . . Slashing . | . . . . . Piercing . | . . . . . Highest Corruption 1 | . . . . 1 Average Corruption 1 | . . . . 1 Corruption Purged . | . . . . . Corruption Blocked . | . . . . . Overload Shots . | . . . . . Overflow Damage . | . . . . . Projectiles . | . . . . . Explosions . | . . . . . Melee . | . . . . . Knockbacks . | . . . . . Impact . | . . . . . Kinetic . | . . . . . Secondary . | . . . . . Self-Inflicted Damage 25 | . . . . 25 Shots . | . . . . . Rammed 16 | . 2 . . 14 Targets Rammed 16 | . 2 . . 14 Kicked . | . . . . . Crushed . | . . . . . Highest Temperature 497 | . 216 185 16 497 Average Temperature 96 | . 70 62 9 120 Received Heat Transfer 768 | . 171 132 6 459 Effects 10 | . . . . 10 Shutdowns 1 | . . . . 1 Energy Bleed 1 | . . . . 1 Interference 7 | . . . . 7 Damage (minor) 1 | . . . . 1 Siege Activations . | . . . . . Robots Corrupted . | . . . . . Combat Hostiles . | . . . . . Parts Fried . | . . . . . Impact Corruptions . | . . . . . Robots Melted 3 | . . . . 3 Combat Hostiles 3 | . . . . 3 Parts Melted 8 | . . . . 8 Heat Transferred 5683 | . 851 370 74 4388 Parts Sabotaged . | . . . . . Parts Stolen . | . . . . . Parts Stripped . | . . . . . Power Chain Reactions . | . . . . . Alert | -11 -10 -9 -9 -8 ------- Run | Yrd Mat Mat Min Mat Peak Influence 299 | . 158 211 95 299 Initial 79 | . . 18 79 37 Average 99 | . 76 122 52 160 Maximum Alert Level 1 | . . 1 . 1 Low Security (%) 88 | 100 100 81 100 68 Level 1 11 | . . 18 . 31 Level 2 . | . . . . . Level 3 . | . . . . . Level 4 . | . . . . . Level 5 . | . . . . . High Security . | . . . . . Max Security . | . . . . . Squads Dispatched 7 | . 2 2 . 3 Investigation 2 | . 2 . . . Extermination . | . . . . . Reinforcement 4 | . . 2 . 2 Assault . | . . . . . Garrison 1 | . . . . 1 Intercept . | . . . . . Searches Triggered . | . . . . . Construction Impeded 1 | . . 1 . . Haulers Reinforced . | . . . . . Active Scanning Responses . | . . . . . Cargo Convoy Interrupts . | . . . . . Stealth | -11 -10 -9 -9 -8 --------- Run | Yrd Mat Mat Min Mat Distress Signals 5 | . 1 1 . 3 Communications Jammed . | . . . . . Distress Signals . | . . . . . Times Spotted 76 | . 24 18 2 32 Peak Tracking Total 7 | . 3 7 2 6 Tactical Retreats 3 | . 2 . . 1 Traps | -11 -10 -9 -9 -8 ------- Run | Yrd Mat Mat Min Mat Traps Triggered . | . . . . . Indirectly . | . . . . . Trap Hack Attempts . | . . . . . Triggered . | . . . . . Disarmed . | . . . . . Reprogrammed . | . . . . . Reused . | . . . . . Traps Extracted . | . . . . . Installed . | . . . . . Triggered . | . . . . . Machines | -11 -10 -9 -9 -8 ---------- Run | Yrd Mat Mat Min Mat Machines Disabled 1 | . . 1 . . Max in Single Turn 1 | . . 1 . . Garrison Access 1 | . . . . 1 Machines Repaired . | . . . . . Machines Dismantled . | . . . . . Machines Sabotaged . | . . . . . Overloaded Fab Kills . | . . . . . Hacking | -11 -10 -9 -9 -8 --------- Run | Yrd Mat Mat Min Mat Machines Accessed 10 | . 5 2 1 2 Terminals 5 | . 3 1 . 1 Fabricators . | . . . . . Repair Stations 1 | . . 1 . . Recycling Units 2 | . 2 . . . Scanalyzers . | . . . . . Garrison Access 1 | . . . . 1 Total Hacks 33 | . 19 7 1 6 Successful 16 | . 7 5 1 3 Failed 17 | . 12 2 . 3 Catastrophic 2 | . 2 . . . Database Lockouts . | . . . . . Manual . | . . . . . Terminals 18 | . 12 3 . 3 Fabricators . | . . . . . Repair Stations 4 | . . 4 . . Recycling Units 7 | . 7 . . . Scanalyzers . | . . . . . Garrison Access 3 | . . . . 3 Terminal Hacks 8 | . 5 1 1 1 Prototype ID Bank 2 | . 2 . . . Open Door 1 | . . . 1 . Branch Access Points 1 | . 1 . . . Emergency Access Points 1 | . . . . 1 Recycling Unit Index 1 | . 1 . . . Dispatch Records 1 | . 1 . . . Transport Status 1 | . . 1 . . Fabricator Hacks . | . . . . . Repair Station Hacks 4 | . . 4 . . Scan Component 2 | . . 2 . . Repair 2 | . . 2 . . Recycling Unit Hacks 2 | . 2 . . . Report Inventory 1 | . 1 . . . Retrieve Components 1 | . 1 . . . Scanalyzer . | . . . . . Garrison Access Hacks 2 | . . . . 2 Seal Access 1 | . . . . 1 Coupler Status 1 | . . . . 1 Unauthorized Hacks . | . . . . . Terminals . | . . . . . Fabricators . | . . . . . Repair Stations . | . . . . . Recycling Units . | . . . . . Scanalyzers . | . . . . . Garrison Access . | . . . . . Data Cores Recovered . | . . . . . Used . | . . . . . Hacking Detections 7 | . 5 . . 2 Full Trace Events 3 | . 3 . . . Feedback Events . | . . . . . Feedback Blocked . | . . . . . Robot Schematics Acquired . | . . . . . Robots Built . | . . . . . Authchips . | . . . . . Time . | . . . . . Total Robot Build Rating . | . . . . . Part Schematics Acquired . | . . . . . Parts Built . | . . . . . Authchips . | . . . . . Time . | . . . . . Total Part Build Rating . | . . . . . Parts Repaired 2 | . . 2 . . Time 52 | . . 52 . . Parts Recycled . | . . . . . Recycled Matter . | . . . . . Retrieved Matter . | . . . . . Retrieved Components 9 | . 9 . . . Parts Scanalyzed . | . . . . . Part Schematics Acquired . | . . . . . Parts Damaged . | . . . . . Bothacking | -11 -10 -9 -9 -8 ------------ Run | Yrd Mat Mat Min Mat Used RIF Installer . | . . . . . Robots Hacked . | . . . . . Non-combat . | . . . . . Combat . | . . . . . Robot Hacks Applied . | . . . . . Relay Couplers Released . | . . . . . Fabnet Peak Effective % . | . . . . . Robots Rewired . | . . . . . Allies Hacked . | . . . . . Hacks Repelled . | . . . . . Allies | -11 -10 -9 -9 -8 -------- Run | Yrd Mat Mat Min Mat Total Allies 4 | . . . 4 . Largest Group 4 | . . . 4 . Highest-Rated Group 71 | . . . 71 . Highest-Rated Ally 31 | . . . 31 . Total Orders . | . . . . . Ally Attacks 15 | . . . 15 . Total Damage 234 | . . . 234 . Kills 3 | . . . 3 . Allies Corrupted . | . . . . . Allies Melted . | . . . . . Intel | -11 -10 -9 -9 -8 ------- Run | Yrd Mat Mat Min Mat Robot Analysis Total . | . . . . . Derelict Logs Recovered 1 | . . . 1 . Drone Launches . | . . . . . Drone Recoveries . | . . . . . Exploration | -11 -10 -9 -9 -8 ------------- Run | Yrd Mat Mat Min Mat Turns Passed 3868 | 96 1305 782 745 940 Spaces Moved 2212 | 64 605 285 712 546 Core 380 | 15 . . . 365 Treads 840 | 49 605 186 . . Legs . | . . . . . Wheels . | . . . . . Hover . | . . . . . Flight 992 | . . 99 712 181 Fastest Speed 34 | 50 160 37 37 34 Average Speed 97 | 134 160 118 38 89 Slowest Speed 270 | 160 160 270 107 200 Overloaded Moves . | . . . . . Propulsion Burnouts . | . . . . . Robots Hopped 9 | . . . 8 1 Cave-ins Triggered . | . . . . . Exploration Rate (%) 45 | 4 69 24 98 31 Regions Visited 4 Branch Regions 1 Pre-discovered Areas . | . . . . . Known Exits Taken 2 | . . 1 1 . Unknown Exits Taken 2 | 1 1 . . . Scrap Searched 2 | . . . 2 . Spaces Dug 4 | . . . 2 2 Terrain Destroyed 4 | . . . 2 2 Melee . | . . . . . Projectile 4 | . . . 2 2 AOE . | . . . . . Terrain Rammed . | . . . . . Walls Destroyed . | . . . . . Machines Disabled . | . . . . . Actions | -11 -10 -9 -9 -8 --------- Run | Yrd Mat Mat Min Mat Total 3466 | 74 798 584 1165 845 Wait 809 | . 76 179 436 118 Move 2191 | 63 604 284 696 544 Hop 8 | . . . 7 1 Pick Up 52 | 5 12 15 6 14 Fast Attach 3 | 1 . 1 . 1 Attach 28 | 4 2 7 5 10 Detach 3 | . . . 3 . Swap 28 | . 9 9 4 6 Drop 36 | 1 8 11 4 12 Fire 292 | . 85 78 4 125 Melee . | . . . . . Ram 14 | . . . . 14 Kick . | . . . . . Crush 2 | . 2 . . . Escape Stasis . | . . . . . Rewire . | . . . . . Trap . | . . . . . Miscellaneous . | . . . . . Route ------- -11/Scrapyard -10/Materials (discovered 2 exits: *Mat / *Min) -9/Materials (discovered 2 exits: *Min / [*Sto]) -9/Mines (discovered 2 exits: *Mat x2) -8/Materials History --------- Turn | Location | Event 5 | -11/Scrapyard | Discovered new exit (range 15) 97 | -11/Scrapyard | Entered Materials 307 | -10/Materials | Build established: Mutant 571 | -10/Materials | Discovered new exit (range 8) 840 | -10/Materials | Identified exit to Mines 1298 | -10/Materials | Discovered new exit (range 15) 1402 | -10/Materials | Entered another Materials area 1402 | -9/Materials | Evolved 2 slots: Utility x2 1847 | -9/Materials | Repaired Ion Engine 1873 | -9/Materials | Repaired Lgt. Treads 1904 | -9/Materials | Build established: Scavenger-Skirmisher 1983 | -9/Materials | Discovered new exit (range 13) 2008 | -9/Materials | Identified exit to Mines 2181 | -9/Materials | Discovered new exit (range 11) 2184 | -9/Materials | Entered Mines 2198 | -9/Mines | Found the Drone Emporium 2200 | -9/Mines | Found Prototype Device 2202 | -9/Mines | Identified Decoy Drone Bay 2219 | -9/Mines | Learned Materials garrison access intel 2228 | -9/Mines | Build established: Scavenger-Scout 2228 | -9/Mines | Assisted by bots powering up and referring to "LRC-V3" 2667 | -9/Mines | Received a Rocket Launcher from a helpful Derelict 2680 | -9/Mines | A weapon hastily lodged in a ceiling crevice suddenly fell to the ground 2701 | -9/Mines | Discovered new exit (range 8) 2703 | -9/Mines | Identified exit to Materials 2706 | -9/Mines | Received a Mining Laser from a helpful Derelict 2752 | -9/Mines | Discovered exit to Materials (range 9) 2929 | -9/Mines | Entered Materials 2929 | -8/Materials | Evolved 2 slots: Propulsion x1, Utility x1 2930 | -8/Materials | Loaded intel: 1 garrison access location 3021 | -8/Materials | Garrison activated, responded to threat 3246 | -8/Materials | Lost 7 parts (1p3n2u1w) 3527 | -8/Materials | Build established: Scavenger-Mutant 3678 | -8/Materials | Core integrity fell below 50% 3839 | -8/Materials | Core integrity fell below 20% 3869 | -8/Materials | Destroyed by S-10 Pest with Light Assault Rifle Last Messages --------------- Destabilizing: System interference. Imp. Signal Interpreter temporarily disabled. Slammed into G-47 Trooper. K-01 Serf collects debris. Slammed into K-01 Serf. Lgt. Ion Engine destroyed. Slammed into K-01 Serf. Slammed into A-02 Transporter. Destabilizing: Core damaged (-11). Slammed into A-02 Transporter. A-02 Transporter destroyed. Slammed into K-01 Serf. Imp. Signal Interpreter destroyed. System corrupted by crushing effect (+1). Acquired Prototype Ballistic Gun. Identified Enh. Autogun. Acquired 5 matter. S-10 Pest destroyed. Acquired 13 matter. Acquired 1 matter. Map ----- +----------------------------------------------------+ | ?????????????????????????????????????????????????? | | ?????????????????????????????????????????????????? | | ?????????????????????????????????????????????????? | | ?????????????????????????????????????????????????? | | ?????????????????????????????????????????????????? | | ?????????????????????????????????????????????????? | | ?????????????????????????????????????????????????? | | ?????????????????????????????????????????????????? | | ?????????????????????????????????????????????????? | | ?????????????????????????????????????????????????? | | ?????????????????????????????????????????????????? | | ?????????????????????????????????????????????????? | | ?????????????????????????????????????????????????? | | ?????????????????????????????????????????????????? | | ?????????????????????????????????????????????????? | | ???????????????????????##????????????????????????? | | ??????????????????????? ????????????????????????? | | ??????????????????????? ????????????????????????? | | ??????????????????????? ????????????????????????? | | ???????????????????????#+######??????????????????? | | ???????????????????????# = #??????????????????? | | ???????????????????????# #??????????????????? | | ???????????????????????# """ #??????????????????? | | ???????????????????????# """ #??????????????????? | | ???????????????????????# """ #??????????????????? | | ???????????????????????#=@ #??????????????????? | | ???????????????????????##s#####??????????????????? | | ????????????????????????#=#??????????????????????? | | ????????????????????????#!#??????????????????????? | | ????????????????????????#[#??????????????????????? | | ????????????????????????#s#??????????????????????? | | ????????????????????????#[#??????????????????????? | | ????????????????????????#[#??????????????????????? | | ????????????????????????#s#??????????????????????? | | ????????????????????????#[#??????????????????????? | | ?????????? ##??#%#??????????????????????? | | ????????####+#########??#[#??????????????????????? | | ???????? """ ##??#%#??????????????????????? | | ???????? "Y" ##??#g#??????????????????????? | | ???????? " " ##??#%#??????????????????????? | | ????????? ! ##??# #??????????????????????? | | ?????????# ##??#%#??????????????????????? | | ??????##### ##??# #??????????????????????? | | ?????###### ##??# #??????????????????????? | | ?????###! """ ###?# #??????????????????????? | | ?????##! "" [##### ##?????????????????????? | | ?????##! """ % #### ##??????? ?????????????? | | ??#??##! %=%%% ##??????""?????????????? | | ?????##! %!=^#######????? """ ??????????? | | ?????###! ### ###+#######????? """ ??????????? | +----------------------------------------------------+ Best States ------------- Heat Dissipation 31 Energy Generation 14 Energy Capacity 280 Matter Stores 300 Matter Capacity 300 Sight Range 16 Robot Scan Range 15 Terrain Scan Range 14 Terrain Scan Density 10 Additional Mass Support 6 Evasion (%) 63 Recoil Reduction 2 Item Schematics ----------------- None Robot Schematics ------------------ None Fabricated ------------ Nothing Alien Tech Used ----------------- None Achievements -------------- None Challenges ------------ None Game ------ Seed NetworkTerrainMonowheel Manual? 0 Play Time 00:30:27 Cumulative 7.9 hours Start 2024.04.28 @ 20:35:52 End 2024.04.28 @ 21:13:39 Sessions 1 Manual Loads 0 Difficulty Rogue Special Mode None Game No. 28 Rogue 14 Adventurer 14 Explorer 0 Win Type - Total 0 Types 0/0/0/0/0/0/0/0/0 Lore% 16 Gallery% 18 Achievement% 15 Wizard Run 0 Options --------- Layout 1 ASCII 0 Keyboard 0 Movement Mouse Keybinds 0 Fullscreen 2 Font 24/Proggy Map View 50x35 Zoom Use 0% Tactical HUD 0 Map Filters NONE Filters NONE Steam 1 RUN: 515e1bd1-473a-46fe-8e99-9026f6dc6ff0